bitfinex/quotes_ETHUSD_20250929
["timestamp","ask_amount","ask_price","bid_price","bid_amount"]
[1759175079626,0.59383358,4191.2,4190.8,2.9626]
[1759175079930,0.59383358,4191.2,4190.9,0.2346]
[1759175080149,0.59383358,4191.2,4190.9,0.3538]
[1759175080444,0.36975512,4191.1,4190.9,0.3538]
[1759175081329,0.36975512,4191.1,4190.9,0.1192]
[1759175082051,0.36975512,4191.1,4191.0,2.727]
[1759175082233,2.38594627,4191.3,4191.0,2.727]
[1759175082640,3.10366334,4191.4,4191.0,2.727]
[1759175083012,3.10366334,4191.4,4191.1,2.728]
[1759175083438,3.10366334,4191.4,4190.9,0.1192]
[1759175083439,0.7178227,4191.4,4190.9,0.1192]
[1759175083626,0.7178227,4191.4,4191.2,2.728]
[1759175083834,0.77031314,4191.3,4191.2,2.728]
[1759175084636,1.43258163,4191.6,4191.2,2.728]
[1759175084951,3.81832456,4191.6,4191.2,2.728]
[1759175085435,1.43258163,4191.6,4191.2,2.728]
[1759175085625,0.85908163,4191.6,4191.3,0.2346]
[1759175085947,2.38562881,4191.8,4191.3,0.2346]
[1759175086248,2.38562881,4191.8,4191.5,0.1192]
[1759175086720,2.38562881,4191.8,4191.6,2.728]
[1759175086910,2.38557191,4191.9,4191.6,2.728]
[1759175087115,1.35285882,4191.8,4191.6,2.728]
[1759175087535,3.73847296,4191.8,4191.6,2.728]
[1759175088245,1.35285882,4191.8,4191.6,2.728]
[1759175088844,1.35285882,4191.8,4191.6,2.9626]
[1759175089045,2.38645103,4192.1,4191.6,2.9626]
[1759175089233,5.38645103,4192.1,4191.6,2.9626]
[1759175089637,5.84075103,4192.1,4191.6,2.9626]
[1759175089950,2.38550349,4192.0,4191.6,2.9626]
[1759175090156,0.001,4192.1,4191.7,0.6829]
[1759175090316,0.001,4192.1,4191.9,0.1192]
[1759175090649,0.001,4192.1,4192.0,2.728]
[1759175090845,0.23963352,4192.1,4192.0,2.728]
[1759175091259,3.23963352,4192.1,4192.0,2.728]
[1759175091860,0.23963352,4192.1,4192.0,2.728]
[1759175092950,2.62507279,4192.1,4192.0,2.728]
[1759175093247,0.23963352,4192.1,4192.0,2.728]
[1759175094552,2.62507279,4192.1,4192.0,2.728]
[1759175095944,0.23963352,4192.1,4192.0,2.728]
[1759175096151,2.62507279,4192.1,4192.0,2.728]
[1759175096559,0.23963352,4192.1,4192.0,2.728]
[1759175097232,2.62507279,4192.1,4192.0,2.728]
[1759175098152,0.23963352,4192.1,4192.0,2.9626]
[1759175098322,0.001,4192.1,4192.0,2.9626]
[1759175098517,0.001,4192.1,4192.0,3.4109]
[1759175098831,0.001,4192.1,4192.0,2.728]
[1759175099860,2.38643927,4192.1,4192.0,2.727]
[1759175100350,0.001,4192.1,4192.0,2.727]
[1759175100649,3.5628709,4192.1,4192.0,2.727]
[1759175101422,2.38565945,4191.8,4191.1,2.38597335]
[1759175101624,2.38565945,4191.8,4191.5,0.1192]
[1759175101843,2.38565945,4191.8,4191.6,2.727]
[1759175102247,5.38554738,4192.0,4191.6,2.727]
[1759175102449,3.35445515,4191.9,4191.6,2.9616]
[1759175103123,3.35445515,4191.9,4191.6,0.2346]
[1759175103454,3.35445515,4191.9,4191.7,2.727]
[1759175103656,2.38561,4191.8,4191.7,2.727]
[1759175104345,0.4543,4191.8,4191.7,2.727]
[1759175104522,0.4543,4191.8,4190.9,0.4483]
[1759175104523,2.38572382,4191.6,4191.0,0.2346]
[1759175104723,2.38572382,4191.6,4191.2,0.1192]
[1759175104958,2.38568541,4191.7,4191.2,0.1192]
[1759175105329,3.00698541,4191.7,4191.2,0.1192]
[1759175105551,0.6213,4191.7,4191.2,0.1192]
[1759175105748,1.60863063,4191.7,4191.2,0.1192]
[1759175105970,0.4543,4191.6,4191.3,2.727]
[1759175106183,2.38594407,4191.3,4190.6,0.2346]
[1759175106477,0.6213,4191.4,4190.8,0.1192]
[1759175106651,2.38589459,4191.3,4190.8,0.1192]
[1759175106854,3.0,4191.1,4190.2,0.2346]
[1759175107049,3.0,4191.1,4190.6,2.8462]
[1759175107375,1.18825163,4191.0,4190.6,2.8462]
[1759175107682,2.38584307,4191.4,4190.9,0.1192]
[1759175107845,2.38584307,4191.4,4190.9,0.3538]
[1759175108558,2.38590092,4191.3,4190.9,0.3538]
[1759175108760,2.3857927,4191.5,4190.9,0.3538]
[1759175108954,3.41477327,4191.4,4191.0,2.727]
[1759175109466,1.02892927,4191.4,4191.0,2.727]
[1759175109684,2.38580946,4191.5,4191.1,3.0734]
[1759175109880,2.3856015,4191.9,4191.3,0.1192]
[1759175110047,2.38550228,4192.0,4191.4,0.6722]
[1759175110249,0.1202,4192.1,4191.5,2.9542]
[1759175110454,0.1202,4192.1,4191.6,0.7914]
[1759175110660,0.1202,4192.1,4191.7,0.6722]
[1759175110959,2.50564483,4192.1,4191.7,0.6722]
[1759175111182,2.50564483,4192.1,4191.8,0.2272]
[1759175111584,5.38559576,4191.9,4191.6,0.1192]
[1759175112644,3.0,4192.0,4191.6,0.1192]
[1759175112848,3.0,4192.0,4191.7,0.6722]
[1759175113066,3.0,4192.0,4191.8,0.6722]
[1759175113273,3.0,4192.0,4191.8,0.445]
[1759175113468,3.0,4192.0,4191.9,0.2272]
[1759175113784,0.001,4192.1,4191.9,0.6722]
[1759175113994,0.001,4192.1,4191.9,0.1192]
[1759175114350,0.001,4192.1,4191.9,0.3464]
[1759175115151,0.001,4192.1,4191.9,0.1192]
[1759175115858,0.001,4192.1,4192.0,0.445]
[1759175116385,0.001,4192.1,4192.0,0.6722]
[1759175116561,0.001,4192.1,4192.0,0.2272]
[1759175116759,0.001,4192.1,4192.0,0.6722]
[1759175117987,0.001,4192.1,4192.0,3.05769618]
[1759175119489,0.001,4192.1,4192.0,0.6722]
[1759175119787,0.001,4192.1,4192.0,3.05769618]
[1759175120088,0.001,4192.1,4192.0,3.88665227]
[1759175122293,0.001,4192.1,4192.0,5.78469618]
[1759175126807,0.001,4192.1,4191.9,0.1192]
[1759175127097,0.001,4192.1,4192.0,2.727]
[1759175128108,0.001,4192.1,4191.9,0.1192]
[1759175128313,0.001,4192.1,4190.7,0.792]
[1759175128314,0.4589,4192.0,4190.2,0.46930707]
[1759175128466,8.14201632,4191.8,4191.6,0.1192]
[1759175128664,0.81430163,4192.0,4191.7,2.727]
[1759175128865,0.001,4192.1,4191.7,2.9587]
[1759175129163,0.001,4192.1,4191.8,0.2317]
[1759175129365,0.001,4192.1,4192.0,0.1192]
[1759175129861,0.001,4192.1,4192.0,0.3509]
[1759175131402,0.001,4192.1,4192.0,0.1192]
[1759175132106,6.01233927,4192.1,4192.0,2.727]
[1759175132403,3.6269,4192.1,4192.0,2.727]
[1759175132763,3.4599,4192.1,4191.9,2.727]
[1759175133607,3.4599,4192.1,4191.6,2.50491095]
[1759175133815,3.4599,4192.1,4192.0,0.0801]
[1759175133966,1.42834529,4192.1,4192.0,0.0801]
[1759175134172,0.001,4192.1,4192.0,0.0801]
[1759175134472,0.001,4192.1,4192.0,3.158]
[1759175134863,0.001,4192.1,4192.0,2.9263]
[1759175138768,0.001,4192.1,4192.0,0.1993]
[1759175139103,10.90921018,4192.1,4192.0,2.8071]
[1759175139463,13.92124945,4192.1,4192.0,0.0801]
[1759175140092,10.90921018,4192.1,4192.0,0.0801]
[1759175140612,13.29464945,4192.1,4192.0,0.0801]
[1759175140788,11.53581018,4192.1,4192.0,0.0801]
[1759175140991,11.36881018,4192.1,4192.0,0.0801]
[1759175142098,13.75424945,4192.1,4192.0,0.0801]
[1759175142309,11.36881018,4192.1,4192.0,0.0801]
[1759175142613,13.92124945,4192.1,4192.0,0.0801]
[1759175142994,11.53581018,4192.1,4192.0,0.0801]
[1759175143674,10.90921018,4192.1,4192.0,0.0801]
[1759175143875,13.29464945,4192.1,4192.0,0.0801]
[1759175144099,11.36881018,4192.1,4192.0,0.0801]
[1759175144683,10.90921018,4192.1,4192.0,0.0801]
[1759175145385,11.62691267,4192.1,4192.0,0.0801]
[1759175145973,13.06291267,4192.1,4192.0,0.0801]
[1759175146504,11.62691267,4192.1,4192.0,0.0801]
[1759175147573,4.71044887,4192.1,4192.0,0.0801]
[1759175147808,3.99274638,4192.1,4192.0,0.0801]
[1759175149478,3.001,4192.1,4192.0,0.0801]
[1759175150508,3.001,4192.1,4192.0,0.7772]
[1759175150896,3.001,4192.1,4192.0,0.3259]
[1759175151506,3.001,4192.1,4192.0,0.0801]
[1759175152498,3.4606,4192.1,4192.0,0.0801]
[1759175152785,4.17829734,4192.1,4192.0,0.0801]
[1759175153024,5.69853247,4192.1,4192.0,0.0801]
[1759175153188,7.62437174,4192.1,4192.0,0.0801]
[1759175153386,3.71869734,4192.1,4192.0,0.0801]
[1759175153582,3.001,4192.1,4192.0,0.7772]
[1759175154590,3.001,4192.1,4192.0,0.3259]
[1759175156188,9.9174638,4192.1,4192.0,2.8061]
[1759175156389,16.46490307,4192.1,4192.0,0.0801]
[1759175156589,19.94350928,4192.1,4192.0,0.0801]
[1759175157098,20.73550928,4192.1,4192.0,0.0801]
[1759175157301,23.25150928,4192.1,4192.0,0.0801]
[1759175157727,23.00234191,4192.1,4192.0,0.0801]
[1759175158293,20.27634191,4192.1,4192.0,0.0801]
[1759175158510,23.00234191,4192.1,4192.0,0.0801]
[1759175159786,2.38626991,4190.7,4190.5,0.002]
[1759175159996,6.9164638,4190.7,4190.5,0.002]
[1759175160210,1.436,4191.2,4190.6,0.2458]
[1759175160410,0.71790344,4190.8,4190.6,0.6971]
[1759175160617,0.71790344,4190.8,4190.5,0.002]
[1759175160820,6.9164638,4190.7,4190.5,0.002]
[1759175161034,5.38629313,4190.6,4190.5,0.002]
[1759175161231,5.84589313,4190.6,4190.5,0.002]
[1759175161398,4.58664638,4190.6,4190.5,0.002]
[1759175161602,12.30275693,4190.6,4190.5,0.002]
[1759175162133,9.9164638,4190.6,4190.5,0.002]
[1759175162536,12.30275693,4190.6,4190.5,0.002]
[1759175164205,12.76235693,4190.6,4190.5,0.002]
[1759175164524,12.30275693,4190.6,4190.5,0.002]
[1759175164705,14.27634182,4190.6,4190.5,0.002]
[1759175166559,14.39554182,4190.6,4190.5,0.002]
[1759175166721,15.09264182,4190.6,4190.5,0.002]
[1759175167758,15.55224182,4190.6,4190.5,0.002]
[1759175168119,15.09264182,4190.6,4190.5,0.002]
[1759175170947,16.52864182,4190.6,4190.5,0.002]
[1759175171968,17.14374182,4190.6,4190.5,0.002]
[1759175173463,17.93574182,4190.6,4190.5,0.002]
[1759175174870,6.82257788,4190.1,4190.0,0.002]
[1759175175066,17.68694979,4190.1,4190.0,0.002]
[1759175175236,18.32864979,4190.1,4190.0,0.002]
[1759175175747,25.71911359,4190.1,4190.0,0.002]
[1759175176527,25.8387194,4190.1,4190.0,0.002]
[1759175176730,18.9222556,4190.1,4190.0,0.002]
[1759175177158,18.2805556,4190.1,4190.0,0.002]
[1759175177882,3.474,4190.1,4190.0,0.002]
[1759175178180,3.474,4190.1,4190.0,0.7131]
[1759175178537,3.0,4190.1,4190.0,0.7131]
[1759175178946,3.0,4190.1,4190.0,3.09973484]
[1759175179155,2.38600899,4191.1,4190.3,2.38646054]
[1759175179358,0.71788798,4190.8,4190.4,3.57480788]
[1759175179560,0.71788798,4190.8,4190.7,2.38623618]
[1759175179736,2.38556789,4191.9,4191.0,2.38601267]
[1759175180063,5.38561966,4191.8,4191.1,0.7111]
[1759175180266,6.9164638,4191.6,4191.2,0.2391]
[1759175180437,9.9164638,4191.3,4191.2,0.2391]
[1759175180770,7.63419548,4191.6,4190.8,5.11315942]
[1759175180963,7.63419548,4191.6,4190.8,2.727]
[1759175181164,7.63419548,4191.6,4190.9,3.09717614]
[1759175181374,3.0,4191.5,4191.0,0.7111]
[1759175181580,3.0,4191.5,4191.1,0.7111]
[1759175182073,3.0,4191.5,4191.2,0.7111]
[1759175182373,3.0,4191.5,4191.3,0.7111]
[1759175182673,2.38588068,4191.4,4191.1,0.2391]
[1759175182850,6.9164638,4191.2,4191.1,0.2391]
[1759175183172,6.9164638,4191.2,4190.8,0.472]
[1759175183173,5.3860098,4191.1,4190.8,0.472]
[1759175183346,6.9164638,4190.9,4190.8,0.2391]
[1759175183747,6.9164638,4190.9,4190.8,0.7111]
[1759175184074,12.30234407,4191.4,4190.8,0.7111]
[1759175184370,2.38589507,4191.3,4190.9,0.7111]
[1759175184669,9.9164638,4191.4,4191.0,0.7111]
[1759175184864,2.3859491,4191.3,4191.1,0.2391]
[1759175185678,11.76495671,4191.4,4191.1,0.2391]
[1759175185877,11.76495671,4191.4,4191.2,0.2391]
[1759175186095,3.71773168,4191.6,4191.3,0.7111]
[1759175186377,0.71773168,4191.6,4191.4,0.8303]
[1759175186573,0.71773168,4191.6,4191.4,0.1192]
[1759175186873,0.71773168,4191.6,4191.5,0.7111]
[1759175187278,2.38559378,4191.9,4191.5,0.7111]
[1759175187475,2.38559378,4191.9,4191.4,0.1192]
[1759175187476,3.001,4192.0,4191.6,0.7111]
[1759175187676,0.71771108,4191.8,4191.7,0.7111]
[1759175187879,0.71771108,4191.8,4191.4,0.1192]
[1759175188091,0.71771108,4191.8,4191.4,2.50503749]
[1759175188405,0.71771108,4191.8,4191.5,0.7111]
[1759175188697,0.71771108,4191.9,4191.6,0.7111]
[1759175188902,0.71771108,4191.9,4191.7,0.7111]
[1759175189273,0.001,4192.0,4191.8,0.7111]
[1759175189595,0.71869219,4192.0,4191.8,0.7111]
[1759175189781,0.71869219,4192.0,4191.9,0.7111]
[1759175190379,0.001,4192.0,4191.9,3.5573]
[1759175194806,0.001,4192.0,4191.9,5.94285309]
[1759175196710,0.001,4192.0,4191.9,3.5573]
[1759175196912,0.001,4192.0,4191.9,5.94285309]
[1759175199903,0.001,4192.0,4191.9,3.5573]
[1759175200503,0.001,4192.0,4191.9,0.1192]
[1759175200702,0.001,4192.0,4191.9,2.8452]
[1759175201014,0.001,4192.0,4191.9,3.0865]
[1759175201210,0.001,4192.0,4191.9,5.47205309]
[1759175201511,0.001,4192.0,4191.9,5.94445309]
[1759175202609,0.001,4192.0,4191.9,3.5589]
[1759175202987,0.001,4192.0,4191.9,5.94445309]
[1759175204525,0.001,4192.0,4191.9,3.5589]
[1759175205022,0.001,4192.0,4191.9,5.94445309]
[1759175206714,0.001,4192.0,4191.9,3.5589]
[1759175206917,0.001,4192.0,4191.9,5.94445309]
[1759175207215,0.001,4192.0,4191.9,3.0865]
[1759175207387,0.001,4192.0,4191.9,2.8452]
[1759175207919,0.001,4192.0,4191.9,3.0865]
[1759175208419,0.001,4192.0,4191.9,5.47205309]
[1759175208817,0.001,4192.0,4191.9,5.94445309]
[1759175209322,0.001,4192.0,4191.9,3.5589]
[1759175209823,0.001,4192.0,4191.9,3.0865]
[1759175210025,0.001,4192.0,4191.9,2.8452]
[1759175210736,0.001,4192.0,4191.9,5.47205309]
[1759175211041,0.001,4192.0,4191.9,3.0865]
[1759175211218,0.001,4192.0,4191.9,3.5589]
[1759175211420,0.001,4192.0,4191.9,3.0865]
[1759175211610,0.001,4192.0,4191.9,2.8452]
[1759175211809,0.001,4192.0,4191.9,0.1192]
[1759175212029,0.001,4192.0,4191.9,2.8442]
[1759175213540,0.435,4192.0,4191.9,2.8442]
[1759175213744,0.001,4192.0,4191.9,2.8442]
[1759175216834,0.001,4192.0,4191.9,5.94345309]
[1759175217545,0.001,4192.0,4191.9,3.0855]
[1759175217913,0.001,4192.0,4191.9,0.1192]
[1759175218108,0.001,4192.0,4191.9,2.8442]
[1759175220442,0.001,4192.0,4191.9,5.47105309]
[1759175220643,0.001,4192.0,4191.9,5.94345309]
[1759175220818,0.001,4192.0,4191.9,3.5579]
[1759175221019,0.001,4192.0,4191.9,2.8442]
[1759175222019,0.001,4192.0,4191.9,3.0855]
[1759175222641,0.001,4192.0,4191.9,0.3605]
[1759175222939,0.001,4192.0,4191.9,3.0855]
[1759175223443,0.001,4192.0,4191.9,0.3605]
[1759175223743,0.001,4192.0,4191.9,3.0855]
[1759175224456,0.001,4192.0,4191.9,0.3605]
[1759175224616,0.001,4192.0,4191.9,5.94345309]
[1759175225857,0.001,4192.0,4191.9,3.5579]
[1759175226159,0.001,4192.0,4191.9,2.8442]
[1759175228730,0.435,4192.0,4191.9,0.1192]
[1759175228936,0.435,4192.0,4191.9,2.8442]
[1759175229147,0.001,4192.0,4191.9,2.8442]
[1759175230931,0.89403258,4192.0,4191.3,2.38589167]
[1759175231130,0.89403258,4192.0,4191.6,0.1192]
[1759175231456,0.443,4191.9,4191.7,2.725]
[1759175231764,0.45103258,4192.0,4191.7,2.725]
[1759175231964,1.75184271,4191.9,4191.6,0.1192]
[1759175232162,0.61,4191.8,4191.7,2.725]
[1759175233266,0.443,4191.8,4191.7,2.725]
[1759175233866,1.14184271,4191.9,4191.7,2.9733]
[1759175234053,0.28403258,4192.0,4191.7,2.9733]
[1759175234250,0.28403258,4192.0,4191.7,2.725]
[1759175234834,0.001,4192.0,4191.8,0.248]
[1759175235047,0.001,4192.0,4191.9,2.725]
[1759175235963,0.001,4192.0,4191.9,5.80675309]
[1759175240940,0.001,4192.0,4191.9,3.08175309]
[1759175241171,0.001,4192.0,4191.9,5.80675309]
[1759175241351,0.001,4192.0,4191.9,3.91291471]
[1759175241562,0.001,4192.0,4191.9,6.63791471]
[1759175241756,0.001,4192.0,4191.9,3.91291471]
[1759175241961,0.001,4192.0,4191.9,6.63791471]
[1759175242166,0.001,4192.0,4191.9,7.42991471]
[1759175242553,0.001,4192.0,4191.9,10.42991471]
[1759175243276,0.001,4192.6,4192.5,3.17721168]
[1759175243593,0.001,4192.6,4192.5,6.61413285]
[1759175243773,0.001,4192.6,4192.5,18.17234148]
[1759175244972,0.001,4192.6,4192.5,15.44834148]
[1759175245182,0.001,4192.6,4192.5,10.03433285]
[1759175254746,0.001,4192.6,4192.5,7.31033285]
[1759175254982,0.001,4192.6,4192.5,10.03433285]
[1759175257274,0.001,4192.6,4192.5,10.03333285]
[1759175257505,0.001,4192.6,4192.5,9.58513285]
[1759175258313,0.001,4192.6,4192.5,10.03333285]
[1759175259985,0.001,4192.6,4192.5,9.58513285]
[1759175260312,0.001,4192.6,4192.5,10.03193285]
[1759175260807,0.001,4192.6,4192.5,6.61413285]
[1759175260979,0.001,4192.6,4192.5,6.33713285]
[1759175261375,0.001,4192.6,4192.5,6.56803285]
[1759175261612,0.001,4192.6,4192.5,7.01483285]
[1759175263478,0.001,4192.6,4192.5,6.56803285]
[1759175264016,0.001,4192.6,4192.5,7.01483285]
[1759175264198,0.001,4192.6,4192.5,6.33713285]
[1759175265473,0.001,4192.6,4192.5,6.56803285]
[1759175265677,0.001,4192.6,4192.5,6.33713285]
[1759175266378,0.001,4192.6,4192.5,6.56803285]
[1759175267282,0.001,4192.6,4192.5,6.33713285]
[1759175269004,0.001,4192.6,4192.5,6.56803285]
[1759175270512,0.001,4192.6,4192.5,3.84503285]
[1759175270679,0.001,4192.6,4192.5,6.57003285]
[1759175271093,0.001,4192.6,4192.5,7.01683285]
[1759175272097,0.001,4192.6,4192.5,3.61613285]
[1759175272301,0.001,4192.6,4192.5,7.04068496]
[1759175272504,0.001,4192.6,4192.5,16.92776729]
[1759175272704,0.001,4192.6,4192.5,17.02339484]
[1759175272909,0.001,4192.6,4192.5,10.1124604]
[1759175273110,1e-08,4193.1,4193.0,3.17692725]
[1759175273299,1e-08,4193.1,4193.0,13.15240369]
[1759175273498,1e-08,4193.1,4193.0,13.92545442]
[1759175276404,0.09562527,4195.0,4193.1,0.792]
[1759175276623,0.4277,4194.3,4193.6,9.41472047]
[1759175276813,0.4277,4194.3,4193.6,12.62610176]
[1759175277016,6.91093444,4195.0,4193.6,7.29544747]
[1759175277212,0.5947,4194.2,4193.6,7.29544747]
[1759175277419,0.1184,4195.3,4193.6,2.18786144]
[1759175277420,0.5461,4195.3,4193.6,2.18786144]
[1759175277599,1.436,4197.2,4195.6,2.38343857]
[1759175277600,6.91093444,4196.4,4195.6,2.38343857]
[1759175277791,0.167,4195.4,4195.1,0.02383733]
[1759175278027,0.167,4195.4,4194.2,0.2309]
[1759175278324,1.30249344,4195.3,4195.1,2.38373139]
[1759175278494,0.5947,4195.2,4194.9,2.38383318]
[1759175278692,6.91093444,4195.6,4195.0,2.729]
[1759175278693,0.5947,4195.1,4195.0,2.729]
[1759175278926,0.5947,4195.1,4195.0,5.11279022]
[1759175279316,0.5947,4195.1,4195.0,2.729]
[1759175279499,0.5947,4195.1,4195.0,5.11279022]
[1759175279701,0.5947,4195.1,4195.0,2.729]
[1759175280008,0.5947,4195.1,4195.0,5.11279022]
[1759175280620,0.71705063,4195.8,4195.1,2.38373282]
[1759175280822,0.4277,4195.5,4195.2,2.729]
[1759175281024,0.71698379,4196.1,4195.3,2.38360188]
[1759175281200,0.4277,4195.4,4195.3,2.38360188]
[1759175281406,0.4277,4195.4,4195.3,5.11260188]
[1759175281601,0.4277,4195.4,4195.3,2.729]
[1759175281602,0.5947,4195.4,4195.3,2.729]
[1759175282198,0.5947,4195.4,4195.3,5.11261976]
[1759175282502,0.66698379,4196.1,4195.3,2.729]
[1759175282844,0.5947,4196.0,4195.3,2.729]
[1759175282996,1.34526344,4195.9,4194.9,2.38383479]
[1759175283196,1.34526344,4195.9,4194.6,0.2309]
[1759175283197,0.5947,4195.8,4195.0,2.735]
[1759175283399,2.38339154,4195.8,4195.0,2.735]
[1759175283637,0.5947,4195.7,4195.0,2.735]
[1759175283797,1.16779653,4202.6,4195.6,13.82186888]
[1759175283999,0.4277,4201.8,4199.6,0.792]
[1759175284203,0.71659332,4201.6,4199.0,9.23389753]
[1759175284426,0.89756627,4200.8,4199.9,2.3810056]
[1759175284631,0.89756627,4200.8,4199.8,0.2309]
[1759175284859,0.89756627,4200.8,4199.9,2.828]
[1759175284998,0.89756627,4200.8,4199.9,9.73893444]
[1759175285308,0.46986627,4200.8,4200.0,5.85180952]
[1759175285513,0.4277,4201.5,4200.8,2.3804922]
[1759175285722,0.4277,4202.2,4200.9,2.861]
[1759175285946,0.37330444,4202.8,4200.7,0.4468]
[1759175285947,0.5947,4202.8,4201.2,3.0]
[1759175286135,0.5947,4202.8,4201.7,2.37995158]
[1759175286136,0.4277,4202.7,4201.7,2.37995158]
[1759175286359,0.75056344,4202.6,4201.8,0.02379932]
[1759175286524,0.42191155,4203.6,4201.8,2.873]
[1759175286856,0.4277,4203.5,4202.1,0.792]
[1759175287061,0.4277,4203.5,4202.2,3.3218]
[1759175287226,0.4277,4203.5,4201.0,21.01107149]
[1759175287227,0.4277,4203.4,4200.2,3.0]
[1759175287429,2.37981913,4202.0,4200.3,2.853]
[1759175287632,2.93378906,4201.9,4201.4,0.1184]
[1759175287935,2.76678906,4201.9,4201.4,0.1184]
[1759175288131,0.4277,4201.8,4201.6,0.1184]
[1759175288452,0.5947,4201.7,4199.9,2.41534698]
[1759175288752,21.01107149,4202.2,4200.0,5.26592415]
[1759175288753,0.5947,4201.6,4200.0,5.26592415]
[1759175289050,0.4277,4201.5,4200.0,2.885]
[1759175289259,3.0,4201.3,4200.0,2.885]
[1759175289548,3.6292,4201.2,4200.1,2.885]
[1759175289751,0.6292,4201.1,4198.9,0.4491]
[1759175289938,0.167,4201.0,4199.4,0.71612804]
[1759175290138,3.6292,4200.9,4199.4,0.71612804]
[1759175290351,2.3809535,4200.0,4199.1,1.288]
[1759175290520,3.0,4199.8,4199.1,1.288]
[1759175290858,3.01033891,4199.7,4198.9,0.48471124]
[1759175291161,0.6292,4199.7,4198.6,2.884]
[1759175291321,0.4622,4200.1,4198.7,2.90781689]
[1759175291523,6.05,4200.5,4198.8,3.85568169]
[1759175291524,0.4622,4200.5,4198.8,3.85568169]
[1759175291747,0.4622,4200.5,4199.3,2.38129944]
[1759175291934,2.84287485,4200.5,4199.3,2.38129944]
[1759175292134,2.84287485,4200.5,4198.8,0.52358169]
[1759175292135,0.6292,4200.4,4198.8,0.29078169]
[1759175292335,2.38111999,4199.8,4198.9,2.888]
[1759175292536,3.08143769,4199.7,4199.0,2.888]
[1759175292747,3.08143769,4199.7,4198.1,0.6819]
[1759175292748,0.700312,4199.7,4198.9,2.888]
[1759175293129,0.238112,4199.7,4199.0,2.38146589]
[1759175293330,0.4622,4200.2,4199.2,2.38135032]
[1759175293560,0.4622,4200.2,4199.5,2.38120154]
[1759175293869,0.167,4200.5,4199.5,2.38120154]
[1759175293870,2.5474133,4201.0,4199.5,2.887]
[1759175294168,2.38056153,4200.7,4199.6,2.891]
[1759175294333,0.597,4200.6,4199.3,2.891]
[1759175294527,0.43,4200.5,4199.4,2.38128952]
[1759175294724,3.0,4200.4,4199.4,2.40509932]
[1759175294920,0.59776696,4200.3,4199.4,2.40509707]
[1759175295151,0.43,4200.5,4199.4,0.02381292]
[1759175295352,0.597,4200.5,4198.7,0.2328]
[1759175295856,0.167,4200.4,4198.7,2.38163326]
[1759175296061,0.43,4200.3,4198.8,0.02381632]
[1759175296239,2.38114426,4199.7,4198.7,2.38168815]
[1759175296436,0.43,4200.0,4198.9,2.3815227]
[1759175296759,3.43,4200.0,4199.0,2.38146354]
[1759175297058,0.43,4201.3,4199.3,2.38134927]
[1759175297264,2.38044469,4200.9,4199.4,0.6644]
[1759175297457,0.23804447,4200.8,4199.6,2.38114499]
[1759175297629,0.43,4200.7,4199.4,5.38129256]
[1759175297830,0.43,4200.6,4199.3,5.28034927]
[1759175298030,2.81064331,4200.6,4199.6,2.38117712]
[1759175298231,0.43,4200.6,4199.7,2.38110798]
[1759175298431,0.30486474,4200.5,4200.1,0.1184]
[1759175298647,0.90186474,4200.5,4200.1,0.1184]
[1759175298847,0.167,4200.4,4199.9,0.1184]
[1759175299165,0.43,4200.3,4199.9,0.1184]
[1759175299342,0.43,4200.2,4199.9,0.1184]
[1759175299763,0.43,4200.1,4199.9,0.1184]
[1759175299953,2.97795238,4200.0,4199.9,0.1184]
[1759175300154,1.18429524,4200.0,4199.6,0.1184]
[1759175300343,2.81106042,4199.9,4199.6,0.1184]
[1759175300665,0.43,4199.9,4199.6,0.1184]
[1759175300881,0.58729524,4200.0,4199.6,0.1184]
[1759175301188,0.58729524,4200.0,4199.2,2.38139774]
[1759175301189,0.58729524,4200.0,4199.2,0.6644]
[1759175301356,3.0,4200.4,4199.8,0.1184]
[1759175301543,5.38073163,4200.4,4199.8,0.1184]
[1759175301749,0.43,4200.3,4199.9,0.1184]
[1759175302077,3.43,4200.2,4199.9,0.1184]
[1759175302265,0.88107862,4200.1,4199.9,0.1184]
[1759175302580,1.47807862,4200.1,4199.1,0.48058507]
[1759175302765,0.1184,4200.0,4199.3,0.1184]
[1759175302965,0.1184,4200.1,4199.4,0.1184]
[1759175303164,0.43,4200.2,4199.0,2.81161386]
[1759175303491,5.38078242,4200.3,4199.9,0.1184]
[1759175303653,3.0,4200.3,4199.9,0.1184]
[1759175303981,0.5893,4200.2,4199.9,0.1184]
[1759175304184,1.0193,4200.2,4199.9,0.1184]
[1759175304397,0.43,4200.1,4199.9,0.1184]
[1759175304687,2.38099262,4200.0,4199.4,0.1184]
[1759175304892,3.0,4199.8,4199.4,0.1184]
[1759175305051,2.38116901,4199.7,4199.4,0.1184]
[1759175305251,2.38116901,4199.7,4198.5,2.38178869]
[1759175305252,3.0,4199.6,4199.1,0.1184]
[1759175305669,0.43,4199.5,4199.1,0.1184]
[1759175305959,2.38118885,4199.6,4199.1,0.1184]
[1759175306281,2.38118885,4199.6,4198.2,2.38195847]
[1759175306282,0.5484,4199.4,4198.7,0.1184]
[1759175306449,5.92970372,4199.4,4198.7,0.1184]
[1759175306779,3.5484,4199.4,4198.7,0.1184]
[1759175308154,3.43,4199.4,4198.5,0.002]
[1759175308377,3.43,4199.4,4198.5,0.48389439]
[1759175308600,0.632,4199.3,4198.5,0.002]
[1759175309998,3.0,4199.2,4198.5,0.002]
[1759175310195,3.597,4199.2,4198.5,0.002]
[1759175310495,0.597,4199.2,4198.5,0.002]